bitfinex/quotes_BTCUSD_20251011
["timestamp","ask_amount","ask_price","bid_price","bid_amount"]
[1760208427260,1.77074425,112160.0,112150.0,0.0010504]
[1760208428044,1.75888995,112160.0,112150.0,0.00278921]
[1760208428451,0.58279915,112160.0,112150.0,0.00278921]
[1760208428654,1.75888995,112160.0,112150.0,0.00278921]
[1760208432250,1.75888995,112160.0,112150.0,0.0022881]
[1760208432459,6.74674395,112160.0,112150.0,0.0022881]
[1760208432666,6.83546329,112160.0,112150.0,0.0022881]
[1760208441859,6.7152474,112160.0,112150.0,0.0022881]
[1760208446622,6.74160782,112160.0,112150.0,0.0022881]
[1760208447073,6.76078784,112160.0,112150.0,0.0022881]
[1760208447534,0.34,112130.0,112120.0,0.0385]
[1760208447773,1.10640979,112130.0,112120.0,0.03900457]
[1760208448141,1.10640979,112130.0,112120.0,0.05451457]
[1760208448804,1.10640979,112130.0,112120.0,0.05551457]
[1760208449585,1.18093704,112130.0,112120.0,0.05551457]
[1760208449789,1.18093704,112130.0,112120.0,0.05751457]
[1760208451019,1.18093704,112130.0,112120.0,0.04617457]
[1760208452319,0.51836439,112130.0,112120.0,0.05834457]
[1760208452481,1.18093704,112130.0,112120.0,0.08223457]
[1760208452696,1.18093704,112130.0,112120.0,0.05834457]
[1760208453294,1.18093704,112130.0,112120.0,0.06008407]
[1760208454935,1.18093704,112130.0,112120.0,0.08397407]
[1760208457783,1.18093704,112130.0,112120.0,0.05721407]
[1760208460990,0.51836439,112130.0,112120.0,0.05721407]
[1760208461184,1.18093704,112130.0,112120.0,0.05721407]
[1760208469936,0.51836439,112130.0,112120.0,0.0750521]
[1760208470545,1.18093704,112130.0,112120.0,0.0750521]
[1760208471319,1.18093704,112130.0,112120.0,0.05721407]
[1760208472092,0.84093704,112130.0,112120.0,0.05721407]
[1760208472854,0.17836439,112130.0,112120.0,0.05721407]
[1760208473060,0.84093704,112130.0,112120.0,0.05721407]
[1760208478518,0.17836439,112130.0,112120.0,0.05721407]
[1760208478677,0.84093704,112130.0,112120.0,0.05721407]
[1760208505456,0.17836439,112130.0,112120.0,0.05721407]
[1760208505662,0.84093704,112130.0,112120.0,0.05721407]
[1760208511466,0.17836439,112130.0,112120.0,0.05721407]
[1760208515562,0.76713406,112130.0,112120.0,0.05721407]
[1760208516616,0.17836439,112130.0,112120.0,0.05721407]
[1760208525331,0.76713406,112130.0,112120.0,0.05721407]
[1760208526178,0.76713406,112130.0,112120.0,0.32591407]
[1760208529016,0.17836439,112130.0,112120.0,0.32591407]
[1760208537521,0.18820215,112160.0,112140.0,0.17834702]
[1760208537765,0.18820215,112160.0,112150.0,0.05224]
[1760208538408,0.17927159,112160.0,112150.0,0.23057259]
[1760208539247,0.17927159,112160.0,112150.0,0.23257259]
[1760208539453,0.17927159,112160.0,112150.0,0.23057259]
[1760208540102,0.17927159,112160.0,112150.0,0.23157259]
[1760208540317,0.0009549,112160.0,112150.0,0.23157259]
[1760208540947,0.0009549,112160.0,112150.0,0.23357259]
[1760208541613,0.17927159,112160.0,112150.0,0.23357259]
[1760208543950,0.17927159,112160.0,112150.0,0.50227259]
[1760208549760,0.0009549,112160.0,112150.0,0.50227259]
[1760208554149,0.17927159,112160.0,112150.0,0.50227259]
[1760208557331,0.14024721,112170.0,112150.0,0.50227259]
[1760208557534,0.17831669,112160.0,112150.0,0.47786259]
[1760208557753,0.14024721,112170.0,112150.0,0.47786259]
[1760208557985,0.14024721,112170.0,112160.0,0.01141]
[1760208558288,0.14024721,112170.0,112160.0,0.05047]
[1760208560134,0.14024721,112170.0,112160.0,0.05147]
[1760208560342,0.14024721,112170.0,112160.0,0.05247]
[1760208563631,0.14082674,112170.0,112160.0,0.05247]
[1760208564446,0.14082674,112170.0,112160.0,0.23078669]
[1760208564812,0.17888032,112170.0,112160.0,0.23078669]
[1760208564985,0.00057953,112170.0,112160.0,0.23078669]
[1760208565284,0.17888032,112170.0,112160.0,0.23078669]
[1760208565946,0.17888032,112170.0,112160.0,0.05247]
[1760208567118,0.17888032,112170.0,112160.0,0.23078669]
[1760208570755,0.17888032,112170.0,112160.0,0.32117]
[1760208570981,0.76764999,112170.0,112160.0,0.32117]
[1760208572306,0.76764999,112170.0,112160.0,0.49948669]
[1760208572509,0.17888032,112170.0,112160.0,0.49948669]
[1760208573469,0.84075301,112170.0,112160.0,0.49948669]
[1760208575162,0.84075301,112170.0,112160.0,0.32117]
[1760208578259,1.5026257,112170.0,112160.0,0.32117]
[1760208578677,0.84075301,112170.0,112160.0,0.32117]
[1760208582553,0.84075301,112170.0,112160.0,0.05247]
[1760208585039,0.84075301,112170.0,112160.0,0.23078669]
[1760208590184,0.84075301,112170.0,112160.0,0.05247]
[1760208592839,0.17888032,112170.0,112160.0,0.05247]
[1760208593040,0.84075301,112170.0,112160.0,0.05247]
[1760208597144,0.17888032,112170.0,112160.0,0.23078669]
[1760208597741,0.84075301,112170.0,112160.0,0.23078669]
[1760208599167,0.17888032,112170.0,112160.0,0.23078669]
[1760208600281,0.00057953,112170.0,112160.0,1.16135938]
[1760208600512,0.00057953,112170.0,112160.0,0.49948669]
[1760208601794,0.00057953,112170.0,112160.0,1.19151128]
[1760208610216,0.00057953,112170.0,112160.0,0.52963859]
[1760208610622,0.00057953,112170.0,112160.0,1.19151128]
[1760208612951,0.00057953,112170.0,112160.0,0.52963859]
[1760208613251,0.00057953,112170.0,112160.0,1.19151128]
[1760208628710,0.00057953,112170.0,112160.0,1.21832573]
[1760208629065,0.00057953,112170.0,112160.0,1.29854365]
[1760208630728,0.17826962,112190.0,112180.0,0.17828489]
[1760208630945,0.84014231,112190.0,112180.0,0.22860489]
[1760208631897,0.84905576,112190.0,112180.0,0.22960489]
[1760208632285,0.18718307,112190.0,112180.0,0.22960489]
[1760208632411,0.84905576,112190.0,112180.0,0.22960489]
[1760208633702,0.18718307,112190.0,112180.0,0.22960489]
[1760208633859,0.84905576,112190.0,112180.0,0.22960489]
[1760208634065,0.02681445,112200.0,112180.0,0.22960489]
[1760208634274,0.54507931,112200.0,112190.0,0.03456]
[1760208634476,1.206952,112200.0,112190.0,0.05032]
[1760208635451,1.20694025,112200.0,112190.0,0.229589]
[1760208635653,0.18725286,112210.0,112190.0,0.229589]
[1760208635828,0.527404,112210.0,112200.0,0.03456]
[1760208635980,0.2142157,112210.0,112200.0,0.03456]
[1760208636175,0.20520007,112210.0,112200.0,0.05032]
[1760208636376,0.20520007,112210.0,112200.0,0.22857311]
[1760208636590,0.36696284,112210.0,112200.0,0.22857311]
[1760208636947,0.34246835,112210.0,112200.0,0.22857311]
[1760208637360,0.00246835,112210.0,112200.0,0.22857311]
[1760208638037,0.18070558,112210.0,112200.0,0.22957311]
[1760208639284,0.18070558,112210.0,112200.0,0.22857311]
[1760208639483,0.18070558,112210.0,112200.0,0.23057311]
[1760208640471,0.18070558,112210.0,112200.0,0.23157311]
[1760208641906,0.00246835,112210.0,112200.0,0.23157311]
[1760208644076,0.18070558,112210.0,112200.0,0.23157311]
[1760208652210,0.18070558,112210.0,112200.0,0.05332]
[1760208652447,0.76869167,112210.0,112200.0,0.05332]
[1760208654112,0.76869167,112210.0,112200.0,0.03065]
[1760208654607,0.79550217,112210.0,112200.0,0.05551]
[1760208654760,0.79550217,112210.0,112200.0,0.05451]
[1760208655154,0.79550217,112210.0,112200.0,0.05351]
[1760208656468,0.79550217,112210.0,112200.0,0.05451]
[1760208662067,0.79550217,112210.0,112200.0,0.23276311]
[1760208662443,0.79550217,112210.0,112200.0,0.05451]
[1760208662444,0.20751608,112210.0,112200.0,0.05451]
[1760208663495,0.79550217,112210.0,112200.0,0.05451]
[1760208664788,0.20751608,112210.0,112200.0,0.05451]
[1760208665123,0.79550217,112210.0,112200.0,0.05451]
[1760208667716,0.20751608,112210.0,112200.0,0.05451]
[1760208669290,0.20751608,112210.0,112200.0,0.23276311]
[1760208671889,0.00246835,112210.0,112200.0,0.23276311]
[1760208674406,0.18070558,112210.0,112200.0,0.23276311]
[1760208676214,0.18070558,112210.0,112200.0,0.05451]
[1760208677575,0.18070558,112210.0,112200.0,0.32321]
[1760208680529,0.18070558,112210.0,112200.0,0.50146311]
[1760208688067,0.18070558,112210.0,112200.0,0.32321]
[1760208689057,0.57429889,112210.0,112200.0,0.32321]
[1760208689657,0.75253612,112210.0,112200.0,0.32321]
[1760208691023,0.75253612,112210.0,112200.0,0.002]
[1760208691235,0.77934822,112210.0,112200.0,0.002]
[1760208692300,0.77934822,112210.0,112200.0,0.001]
[1760208692726,0.77934822,112210.0,112200.0,0.002]
[1760208693145,0.77934822,112210.0,112200.0,0.001]
[1760208693604,1.82273648,112210.0,112200.0,0.001]
[1760208694021,6.81059048,112210.0,112200.0,0.001]
[1760208694444,0.17828489,112180.0,112170.0,0.06299]
[1760208694667,0.76627098,112180.0,112170.0,0.07871]
[1760208694876,0.17828489,112180.0,112170.0,0.07871]
[1760208695096,0.76627098,112180.0,112170.0,0.07871]
[1760208695307,0.79308685,112180.0,112170.0,0.07871]
[1760208695559,0.86694845,112180.0,112170.0,0.07871]
[1760208695772,0.86694845,112180.0,112170.0,0.08071]
[1760208696409,0.86694845,112180.0,112170.0,0.08171]
[1760208698347,0.20510076,112180.0,112170.0,0.08171]
[1760208698554,0.86694845,112180.0,112170.0,0.08171]
[1760208699744,0.20510076,112180.0,112170.0,0.08171]
[1760208699949,0.86694845,112180.0,112170.0,0.08171]
[1760208700201,0.86694845,112180.0,112170.0,0.08440286]
[1760208700597,0.20510076,112180.0,112170.0,0.08440286]
[1760208700801,0.86694845,112180.0,112170.0,0.08440286]
[1760208701136,0.20510076,112180.0,112170.0,0.26270365]
[1760208701545,0.02681587,112180.0,112170.0,0.26270365]
[1760208701737,0.18719167,112200.0,112180.0,0.17827727]
[1760208701738,0.84903936,112200.0,112180.0,0.17827727]
[1760208701938,0.178269,112190.0,112180.0,0.19021727]
[1760208702289,0.178269,112190.0,112180.0,0.20554727]
[1760208702463,0.178269,112190.0,112180.0,0.22923727]
[1760208702665,0.87585201,112200.0,112180.0,0.22923727]
[1760208702865,0.87585201,112200.0,112190.0,0.03598]
[1760208703068,0.87585201,112200.0,112190.0,0.05195]
[1760208703355,0.68866034,112200.0,112190.0,0.05195]
[1760208703575,0.86694285,112200.0,112190.0,0.05195]
[1760208704020,0.8758555,112200.0,112190.0,0.05195]
[1760208704732,0.8758555,112200.0,112190.0,0.05295]
[1760208705144,1.2158555,112200.0,112190.0,0.05295]
[1760208705604,1.2158555,112200.0,112190.0,0.05395]
[1760208707404,1.2158555,112200.0,112190.0,0.05548378]
[1760208717264,0.02681265,112200.0,112190.0,0.73515837]
[1760208717477,0.02681265,112200.0,112190.0,0.89560047]
[1760208717685,0.17823723,112210.0,112190.0,0.89560047]
[1760208717889,0.17823723,112210.0,112200.0,0.03598]
[1760208718096,0.20504773,112210.0,112200.0,0.05195]
[1760208719769,0.20504773,112210.0,112200.0,0.05295]
[1760208719974,0.20504773,112210.0,112200.0,0.05195]
[1760208720205,0.20504773,112210.0,112200.0,0.05295]
[1760208720418,0.86689542,112210.0,112200.0,0.05295]
[1760208721267,0.86689542,112210.0,112200.0,0.05395]
[1760208723106,0.86689542,112210.0,112200.0,0.05490439]
[1760208725520,0.86689542,112210.0,112200.0,0.2331575]
[1760208726262,0.0268105,112210.0,112200.0,0.89500519]
[1760208726466,0.18775649,112220.0,112200.0,0.89500519]
[1760208726673,1.21641173,112220.0,112210.0,0.03598]
[1760208726871,1.21641173,112220.0,112210.0,0.05195]
[1760208727069,0.55456404,112220.0,112210.0,0.05195]
[1760208727338,1.21641173,112220.0,112210.0,0.05195]
[1760208728822,1.21641173,112220.0,112210.0,0.05295]
[1760208729229,1.21641173,112220.0,112210.0,0.05195]
[1760208729435,1.21641173,112220.0,112210.0,0.05395]
[1760208733772,1.21641173,112220.0,112210.0,0.02942]
[1760208735392,1.21641173,112220.0,112210.0,0.05214]
[1760208735564,1.21641173,112220.0,112210.0,0.02942]
[1760208736220,1.21641173,112220.0,112210.0,0.05214]
[1760208744220,0.55456404,112220.0,112210.0,0.05214]
[1760208744423,1.21641173,112220.0,112210.0,0.05214]
[1760208749163,0.55456404,112220.0,112210.0,0.05214]
[1760208749364,1.21641173,112220.0,112210.0,0.05214]
[1760208749564,0.96772605,112220.0,112210.0,0.05214]
[1760208749969,0.97663711,112220.0,112210.0,0.05214]
[1760208750784,1.15488795,112220.0,112210.0,0.05214]
[1760208751633,1.15488795,112220.0,112210.0,0.00115068]
[1760208751839,1.15488795,112220.0,112210.0,0.02779068]
[1760208752041,1.17941795,112220.0,112210.0,0.02779068]
[1760208754917,1.16426795,112220.0,112210.0,0.02779068]
[1760208755775,1.17941795,112220.0,112210.0,0.02779068]
[1760208757539,1.10547296,112220.0,112210.0,0.02779068]
[1760208758445,1.10547296,112220.0,112210.0,0.02664]
[1760208758658,1.10547296,112220.0,112210.0,0.04936]
[1760208762713,1.09032296,112220.0,112210.0,0.04936]
[1760208766626,1.08094296,112220.0,112210.0,0.04936]
[1760208767028,0.49304026,112220.0,112210.0,0.04936]
[1760208768219,1.08094296,112220.0,112210.0,0.04936]
[1760208772592,0.49304026,112220.0,112210.0,0.04936]
[1760208775138,0.49304026,112220.0,112210.0,0.22759723]
[1760208775337,0.49304026,112220.0,112210.0,0.04936]
[1760208775718,0.46623271,112220.0,112210.0,0.04936]
[1760208778589,0.46623271,112220.0,112210.0,0.31806]
[1760208779035,0.49071271,112220.0,112210.0,0.29534]
[1760208779560,0.49071271,112220.0,112210.0,0.32007]
[1760208780535,0.49071271,112220.0,112210.0,0.29534]
[1760208781151,0.47561271,112220.0,112210.0,0.32007]
[1760208781675,0.46623271,112220.0,112210.0,0.32007]
[1760208782077,0.46623271,112220.0,112210.0,0.49830723]
[1760208784469,0.46623271,112220.0,112210.0,0.22960723]
[1760208785285,0.46623271,112220.0,112210.0,0.05137]
[1760208785486,0.46623271,112220.0,112210.0,0.06919372]
[1760208786557,0.46623271,112220.0,112210.0,0.24743095]
[1760208786766,0.46623271,112220.0,112210.0,0.05137]
[1760208786965,0.46623271,112220.0,112210.0,0.06919372]
[1760208787305,0.46623271,112220.0,112210.0,0.24743095]
[1760208787523,0.46623271,112220.0,112210.0,0.05137]
[1760208789974,0.48133271,112220.0,112210.0,0.02664]
[1760208790351,0.48133271,112220.0,112210.0,0.29534]
[1760208790570,0.46623271,112220.0,112210.0,0.32007]
[1760208799239,0.46623271,112220.0,112210.0,0.49830723]
[1760208799462,0.46623271,112220.0,112210.0,0.32007]
[1760208803925,0.49303904,112220.0,112210.0,0.32007]
[1760208810060,0.50873904,112220.0,112210.0,0.29534]
[1760208810281,0.50873904,112220.0,112210.0,0.31914]
[1760208811656,0.50873904,112220.0,112210.0,0.29534]
[1760208813762,1.12095174,112220.0,112210.0,0.2687]
[1760208814208,0.51823723,112210.0,112200.0,0.28110439]
[1760208814430,0.52761723,112210.0,112200.0,0.28110439]
[1760208814610,0.54331723,112210.0,112200.0,0.29634439]
[1760208814916,0.57012574,112210.0,112200.0,0.29634439]
[1760208815891,0.57012574,112210.0,112200.0,0.29734439]
[1760208816764,0.57012574,112210.0,112200.0,0.29834439]
[1760208818514,0.57012574,112210.0,112200.0,0.32214439]
[1760208818885,0.57012574,112210.0,112200.0,0.29834439]
[1760208819454,1.23157092,112210.0,112200.0,0.29834439]
[1760208821843,1.23157092,112210.0,112200.0,0.27165439]
[1760208821997,1.25657092,112210.0,112200.0,0.27165439]
[1760208823239,1.23157092,112210.0,112200.0,0.30021439]
[1760208823568,1.21587092,112210.0,112200.0,0.32341439]
[1760208825435,0.55442574,112210.0,112200.0,0.32341439]
[1760208825643,0.54504574,112210.0,112200.0,0.5016675]
[1760208826805,0.54504574,112210.0,112200.0,0.32341439]
[1760208827662,0.54504574,112210.0,112200.0,0.5016675]
[1760208841110,1.20649092,112210.0,112200.0,0.32341439]
[1760208843231,1.20649092,112210.0,112200.0,0.5016675]
[1760208844327,1.20649092,112210.0,112200.0,0.32341439]
[1760208845010,0.86649092,112210.0,112200.0,0.32341439]
[1760208845453,0.20504574,112210.0,112200.0,0.32341439]
[1760208845864,0.86649092,112210.0,112200.0,0.32341439]
[1760208847953,0.88175092,112210.0,112200.0,0.32341439]
[1760208848531,0.86649092,112210.0,112200.0,0.32341439]
[1760208850530,0.20504574,112210.0,112200.0,0.32341439]
[1760208850777,0.86649092,112210.0,112200.0,0.5016675]
[1760208851595,0.86649092,112210.0,112200.0,0.32341439]
[1760208855588,0.86649092,112210.0,112200.0,0.5016675]
[1760208860096,0.86649092,112210.0,112200.0,0.32341439]
[1760208861649,0.86649092,112210.0,112200.0,0.5016675]
[1760208862538,0.20504574,112210.0,112200.0,0.5016675]
[1760208862700,0.86649092,112210.0,112200.0,0.5016675]
[1760208863503,0.20504574,112210.0,112200.0,0.5016675]
[1760208864711,0.16616081,112210.0,112200.0,0.5016675]
[1760208868304,0.87541542,112220.0,112200.0,0.5016675]
[1760208868498,0.87541542,112220.0,112210.0,0.03616]
[1760208868721,0.87541542,112220.0,112210.0,0.05259]
[1760208869289,0.17823723,112210.0,112200.0,0.4837075]
[1760208869783,0.17823723,112210.0,112200.0,0.5001375]
[1760208870562,0.17823723,112210.0,112200.0,0.5011375]
[1760208871144,0.17823723,112210.0,112200.0,0.46363752]
[1760208871979,0.17823723,112210.0,112200.0,0.46463752]
[1760208877368,0.22335024,112220.0,112200.0,0.46463752]
[1760208877650,0.17823723,112210.0,112200.0,0.44087752]
[1760208878199,0.17823723,112210.0,112200.0,0.46363752]
[1760208878747,0.17823723,112210.0,112200.0,0.46263752]
[1760208879070,0.17823723,112210.0,112200.0,0.46363752]
[1760208879722,0.22335024,112220.0,112200.0,0.46463752]
[1760208879916,0.22335024,112220.0,112210.0,0.03616]
[1760208880116,0.22335024,112220.0,112210.0,0.05259]
[1760208880541,0.23906024,112220.0,112210.0,0.05259]
[1760208881710,0.23906024,112220.0,112210.0,0.05359]
[1760208882092,0.22335024,112220.0,112210.0,0.05359]
[1760208884866,0.23939024,112220.0,112210.0,0.05359]
[1760208886411,0.23939024,112220.0,112210.0,0.02983]
[1760208886614,0.57939024,112220.0,112210.0,0.02983]
[1760208889530,0.57939024,112220.0,112210.0,0.0134]
[1760208889802,0.57939024,112220.0,112210.0,0.02874]
[1760208892599,0.57939024,112220.0,112210.0,0.0527]
[1760208898235,0.56335024,112220.0,112210.0,0.0527]
[1760208898491,0.55397024,112220.0,112210.0,0.0527]
[1760208898800,0.54502969,112220.0,112210.0,0.23093723]
[1760208899431,0.51822135,112220.0,112210.0,0.23093723]
[1760208900787,0.51822135,112220.0,112210.0,0.0527]
[1760208901469,0.51822135,112220.0,112210.0,0.23093723]
[1760208902155,0.53426135,112220.0,112210.0,0.0527]
[1760208902359,0.51822135,112220.0,112210.0,0.0527]
[1760208902806,0.51822135,112220.0,112210.0,0.23093723]
[1760208904986,0.51822135,112220.0,112210.0,0.0527]
[1760208907303,0.53426135,112220.0,112210.0,0.0527]
[1760208907756,0.53426135,112220.0,112210.0,0.02874]
[1760208908556,1.14510959,112220.0,112210.0,0.001]
[1760208908951,1.17191762,112220.0,112210.0,0.001]
[1760208912409,1.19860045,112220.0,112210.0,0.001]
[1760208912611,1.17191762,112220.0,112210.0,0.001]
[1760208913184,0.1782669,112200.0,112180.0,0.34725373]
[1760208913382,0.18769729,112200.0,112190.0,0.01594]
[1760208913592,0.20421729,112200.0,112190.0,0.01709856]
[1760208914876,0.20421729,112200.0,112190.0,0.01809856]
[1760208915847,0.20421729,112200.0,112190.0,0.01909856]
[1760208917834,0.22918729,112200.0,112190.0,0.00315856]
[1760208918185,0.20421729,112200.0,112190.0,0.01909856]
[1760208918629,0.20421729,112200.0,112190.0,0.03136856]
[1760208927488,0.20421729,112200.0,112190.0,0.20963756]
[1760208928282,0.18769729,112200.0,112190.0,0.23255756]
[1760208931673,5.039e-05,112200.0,112190.0,0.23255756]
[1760208932178,0.1783035,112200.0,112190.0,0.23255756]
[1760208937289,0.15525391,112210.0,112190.0,0.23255756]
[1760208937631,0.15525391,112210.0,112190.0,0.23155014]
[1760208937831,0.17825311,112200.0,112190.0,0.23155014]
[1760208938054,0.17825311,112200.0,112190.0,0.23055014]
[1760208938343,0.17825311,112200.0,112190.0,0.2317087]
[1760208938891,0.17825311,112200.0,112190.0,0.2307087]
[1760208939114,0.17825311,112200.0,112190.0,0.2317087]
[1760208939461,0.17825311,112200.0,112190.0,0.2307087]
[1760208939786,0.17825311,112200.0,112190.0,0.2327087]
[1760208941319,0.17825311,112200.0,112190.0,0.0544397]
[1760208941939,0.83972765,112200.0,112190.0,0.0544397]
[1760208942482,0.17825311,112200.0,112190.0,0.0544397]
[1760208943949,0.17825311,112200.0,112190.0,0.2327087]
[1760208949388,0.17320529,112200.0,112190.0,0.0544397]
[1760208951791,0.83467983,112200.0,112190.0,0.0544397]
[1760208954345,0.83467983,112200.0,112190.0,0.2327087]
[1760208956079,0.17320529,112200.0,112190.0,0.2327087]
[1760208956325,0.83467983,112200.0,112190.0,0.2327087]
[1760208957724,0.17320529,112200.0,112190.0,0.2327087]
[1760208960620,0.83467983,112200.0,112190.0,0.2327087]
[1760208961264,0.17320529,112200.0,112190.0,0.2327087]
[1760208971787,0.83467983,112200.0,112190.0,0.2327087]
[1760208973598,0.83467983,112200.0,112190.0,0.0544397]
[1760208984476,0.86149095,112200.0,112190.0,0.2327087]
[1760208986165,0.20001641,112200.0,112190.0,0.2327087]
[1760208989416,0.20001641,112200.0,112190.0,0.25951982]
[1760208989618,0.20001641,112200.0,112190.0,0.08125082]
[1760208991416,0.86149095,112200.0,112190.0,0.08125082]
[1760208992679,1.90185549,112200.0,112190.0,0.0033097]
[1760208992852,2.0449727,112200.0,112190.0,0.0033097]
[1760208993627,2.0449727,112200.0,112190.0,0.0013097]
[1760208994048,2.0449727,112200.0,112190.0,0.0023097]
[1760208994252,1.92853832,112200.0,112190.0,0.0023097]
[1760208995011,1.92853832,112200.0,112190.0,0.0013097]
[1760209001733,1.78223666,112200.0,112190.0,0.0013097]
[1760209003337,1.75555383,112200.0,112190.0,0.0013097]
[1760209013001,1.16723012,112200.0,112190.0,0.0013097]
[1760209013494,0.55570641,112200.0,112190.0,0.0512797]
[1760209013710,1.14403012,112200.0,112190.0,0.0286797]
[1760209013928,0.20506423,112200.0,112190.0,0.2295487]
[1760209014152,0.20506423,112200.0,112190.0,0.0512797]
[1760209014362,0.54506423,112200.0,112190.0,0.0512797]
[1760209014572,0.20506423,112200.0,112190.0,0.0522797]
[1760209014750,0.54506423,112200.0,112190.0,0.0512797]
[1760209015161,0.54506423,112200.0,112190.0,0.0522797]
[1760209015405,1.14974794,112200.0,112190.0,0.0286797]
[1760209015733,1.14974794,112200.0,112190.0,0.0306797]
[1760209016348,1.14974794,112200.0,112190.0,0.0316797]
[1760209017020,1.14974794,112200.0,112190.0,0.0306797]
[1760209017160,1.14974794,112200.0,112190.0,0.0296797]
[1760209017369,1.14974794,112200.0,112190.0,0.0522797]
[1760209017571,1.14974794,112200.0,112190.0,0.0306797]
[1760209019407,1.17362794,112200.0,112190.0,0.0033097]
[1760209019815,1.10833017,112200.0,112190.0,0.0194197]
[1760209020010,1.13514275,112200.0,112190.0,0.0532797]
[1760209021715,1.13514275,112200.0,112190.0,0.0194197]
[1760209024121,0.35220593,112200.0,112190.0,0.0532797]
[1760209024260,0.53045904,112200.0,112190.0,0.0532797]
[1760209031172,0.53045904,112200.0,112190.0,0.2315487]
[1760209031356,0.53045904,112200.0,112190.0,0.0532797]
[1760209037196,0.20506569,112200.0,112190.0,0.0532797]
[1760209039991,0.22092569,112200.0,112190.0,0.0532797]
[1760209040197,0.20506569,112200.0,112190.0,0.0532797]
[1760209044390,0.17825311,112200.0,112190.0,0.0532797]
[1760209057853,0.19411311,112200.0,112190.0,0.0306797]
[1760209058276,0.19411311,112200.0,112190.0,0.0548897]
[1760209059676,0.17825311,112200.0,112190.0,0.0548897]
[1760209063435,0.8397836,112200.0,112190.0,0.0548897]
[1760209071449,0.8548936,112200.0,112190.0,0.0306797]
[1760209071889,1.54048409,112200.0,112190.0,0.0033097]
[1760209073721,0.8548936,112200.0,112190.0,0.0434197]
[1760209073941,0.8548936,112200.0,112190.0,0.0551297]
[1760209074666,0.8397836,112200.0,112190.0,0.0551297]
[1760209087471,0.8548936,112200.0,112190.0,0.0551297]
[1760209087916,0.8397836,112200.0,112190.0,0.0551297]
[1760209092366,0.17825311,112200.0,112190.0,0.0551297]
[1760209092568,0.8554136,112200.0,112190.0,0.0551297]
[1760209093788,0.8554136,112200.0,112190.0,0.0315597]
[1760209095790,0.8554136,112200.0,112190.0,0.0561397]
[1760209100619,0.8554136,112200.0,112190.0,0.0315597]
[1760209101650,0.8554136,112200.0,112190.0,0.0561397]
[1760209102444,0.8554136,112200.0,112190.0,0.0315597]
[1760209104733,0.19388311,112200.0,112190.0,0.0561397]
[1760209104906,0.88222565,112200.0,112190.0,0.0561397]
[1760209106779,0.88222565,112200.0,112190.0,0.0315597]
[1760209109313,0.88222565,112200.0,112190.0,0.0563997]
[1760209109706,0.86659565,112200.0,112190.0,0.0563997]
[1760209111772,0.88233565,112200.0,112190.0,0.0563997]
[1760209111975,0.88233565,112200.0,112190.0,0.0315597]
[1760209120644,0.88233565,112200.0,112190.0,0.0563997]
[1760209121580,0.85434313,112200.0,112190.0,0.0563997]
[1760209122323,0.87094313,112200.0,112190.0,0.0563997]
[1760209123527,0.79748181,112200.0,112190.0,0.0563997]
[1760209125241,0.78088181,112200.0,112190.0,0.0563997]
[1760209125472,0.19281264,112200.0,112190.0,0.0563997]
[1760209125681,0.78088181,112200.0,112190.0,0.0563997]
[1760209126087,0.19281264,112200.0,112190.0,0.0563997]
[1760209126297,0.01455953,112200.0,112190.0,0.2346687]
[1760209126513,0.01455953,112200.0,112190.0,0.2648206]
[1760209126999,0.17862345,112210.0,112200.0,0.17825311]
[1760209127216,0.20543342,112210.0,112200.0,0.22943311]
[1760209128041,0.20542238,112210.0,112200.0,0.22943311]
[1760209128247,0.02718515,112210.0,112200.0,0.22943311]
[1760209129235,0.02718515,112210.0,112200.0,0.23043311]
[1760209129847,0.02718515,112210.0,112200.0,0.22943311]
[1760209130031,0.20542238,112210.0,112200.0,0.22943311]
[1760209130224,0.20542238,112210.0,112200.0,0.23143311]
[1760209130697,0.20542238,112210.0,112200.0,0.23243311]
[1760209132501,0.20542238,112210.0,112200.0,0.2330123]
[1760209138402,0.02718515,112210.0,112200.0,0.2330123]
[1760209139422,0.20542238,112210.0,112200.0,0.2330123]
[1760209141080,0.02718515,112210.0,112200.0,0.2330123]
[1760209143268,0.02722515,112210.0,112200.0,0.2330123]
[1760209144506,0.02722515,112210.0,112200.0,0.2631642]
[1760209149208,0.20546238,112210.0,112200.0,0.2631642]
[1760209149447,0.02722515,112210.0,112200.0,0.2631642]
[1760209150478,0.20546238,112210.0,112200.0,0.2631642]
[1760209152766,0.73539466,112220.0,112200.0,0.2631642]
[1760209152972,0.17823723,112210.0,112200.0,0.2631642]
[1760209153397,0.17823723,112210.0,112200.0,0.28997211]
[1760209154700,0.17823723,112210.0,112200.0,0.28897211]
[1760209155132,0.17823723,112210.0,112200.0,0.28997211]
[1760209155494,0.17823723,112210.0,112200.0,0.28897211]
[1760209155691,0.17823723,112210.0,112200.0,0.28997211]
[1760209158012,0.76220257,112220.0,112200.0,0.28997211]
[1760209158215,0.17823723,112210.0,112200.0,0.28997211]
[1760209158856,0.17823723,112210.0,112200.0,0.28897211]
[1760209159229,0.17823723,112210.0,112200.0,0.28997211]
[1760209160687,0.17823723,112210.0,112200.0,0.28897211]
[1760209160891,0.76220257,112220.0,112200.0,0.28897211]
[1760209161091,0.76220257,112220.0,112200.0,0.26741211]
[1760209161426,0.76220257,112220.0,112210.0,0.01182]
[1760209161635,0.77793257,112220.0,112210.0,0.02759]
[1760209161831,0.77851171,112220.0,112210.0,0.02759]
[1760209162508,0.77851171,112220.0,112210.0,0.05089]
[1760209162902,0.77851171,112220.0,112210.0,0.02759]
[1760209163068,0.77851171,112220.0,112210.0,0.05089]
[1760209164424,0.77851171,112220.0,112210.0,0.05189]
[1760209164635,0.77851171,112220.0,112210.0,0.05289]
[1760209164833,0.7517038,112220.0,112210.0,0.05289]
[1760209165171,0.7517038,112220.0,112210.0,0.02959]
[1760209171851,0.7766138,112220.0,112210.0,0.002]
[1760209172325,0.7517038,112220.0,112210.0,0.002]
[1760209172914,0.7517038,112220.0,112210.0,0.01777]
[1760209174841,0.7766138,112220.0,112210.0,0.002]
[1760209176457,0.7517038,112220.0,112210.0,0.01777]
[1760209185642,0.82502019,112220.0,112210.0,0.01777]
[1760209189472,0.82502019,112220.0,112210.0,0.02921]
[1760209192772,0.16363463,112220.0,112210.0,0.02921]
[1760209192980,0.82502019,112220.0,112210.0,0.02921]
[1760209193192,0.82502019,112220.0,112210.0,0.01344]
[1760209193391,0.84755019,112220.0,112210.0,0.01344]
[1760209195154,0.84755019,112220.0,112210.0,0.002]
[1760209201072,0.82502019,112220.0,112210.0,0.01811]
[1760209201453,0.82502019,112220.0,112210.0,0.05333]
[1760209203083,0.6619647,112220.0,112210.0,0.23156723]
[1760209203285,0.00057914,112220.0,112210.0,0.50026723]
[1760209203461,0.00057914,112220.0,112210.0,0.53041913]
[1760209203834,0.6619647,112220.0,112210.0,0.53041913]
[1760209205007,0.00057914,112220.0,112210.0,0.53041913]